{"text_format":"1","workbook":"xlsx","n_sheets":3,"sheets":["S1","S2","S3"],"not_rendered":{"charts":0,"images":0,"macros":1,"external_links":0,"defined_names":0,"comments":2,"pivot_tables":0},"unopened":[],"bounds":{"document_bytes":16777216,"sheet_cells":100000,"rows_first":2000,"rows_last":500,"rows_between":2000,"halvings":0,"cell_chars":16384,"cell_head_chars":4096},"cells_cut":0,"cells_raw":0,"read":"whole","date_system":"1900"}

{"sheet":"S1","index":0,"n_rows":95,"n_cols":35,"rows_kept":95,"cut":false,"hidden":false,"merged":[[0,0,0,21],[1,0,1,21]]}
[]
["11.ЛКМ и вентиляция"]
["Статус","Наименование","Тип","Артикул, марка","Изготовитель","Назначение/ примечание","Ед. изм.","Кол-во на 1 зак. План","Кол-во к закупке","Наименование поставщика","Курс р./ [валюта]","Цена,                   [валюта]/ ед.","Цена,                     руб./ ед.","Стоимость, руб.","Оплачено","К оплате","№ и дата счета","Дата оплаты/ срок поставки","Плановая дата поставки","Требуемая дата на складе","Склад дата","Кто заказывает","январь","февраль","март","апрель","май","июнь","июль","август","сентябрь","октябрь","ноябрь","декабрь","Служебная колонка"]
["1","2","3","4","5","6","7",8,9,"10","11","12","13","14","15","16","17","18","19","20","21","22","23","24","25","26","27","28","29","30","31","32","33","34"]
[null,"Изоляция "]
[null,"ROCKWOOL® SeaRox MA 740 ALU 50x1000x5000",null,null,null,null,"уп.",12,12,"Талан",null,null,5000,{"$f":"M6*I6","v":60000},null,{"$f":"N6-O6","v":60000},null,null,null,null,null,null,{"$f":"P6","v":60000}]
[null,"ROCKWOOL® SeaRox SL 740 ALU 50x600x1000 - 8 шт.",null,null,null,null,"уп.",30,15,"Талан",null,null,2528.64,37929.599999999999,null,{"$f":"N7-O7","v":37929.599999999999},null,null,null,null,null,null,37929.599999999999]
[null,"ROCKWOOL® SeaRox SL 620 ALU 30x600x1000 - 8 шт.",null,null,null,null,"уп.",19,20,"Талан",null,null,2528.64,50572.799999999996,null,50572.799999999996,null,null,null,null,null,null,50572.799999999996]
[null,"Доставка изоляции RockWool",null,null,null,null,"шт.",1,1,"Талан",null,null,5000,5000,null,5000,null,null,null,null,null,null,5000]
[null,"Жидкая изоляция \"ТЕПЛОТОР СТАНДАРТ\"",null,null,null,null,"л.",340,340,"РиК",null,null,{"$f":"8380.1/20","v":419.005},142461.70000000001,null,142461.70000000001,null,null,null,null,null,null,142461.70000000001]
[null,"цилиндры наливные Rockwool RW 100  32х30 к/ф",null,null,null,null,"шт.",1,0,"Талан",null,null,138.82,0,null,0,null,null,null,null,null,null,0]
[null,"цилиндры наливные Rockwool RW 100 48х30 к/ф",null,null,null,null,"м",1,0,"Талан",null,null,187.82,0,null,0,null,null,null,null,null,null,0]
[null,"Скотч алюминиевый широкий - 75 мм.",null,null,null,null,"м",96,96,"Гелеон",null,null,288,27648,null,27648,null,null,null,null,null,null,27648]
[null,"Гвоздь изоляционный приварной 3*85 стальной омедненный BIMETAL",null,null,null,null,"л.",4000,4000,"СтилТрейд/НЕВАДА",null,null,14.8,59200,{"$f":"N14","v":59200},0,"№2 от 10.01.2022",null,null,null,null,null,0]
[null,"Шайба Стальная диаметром 38 мм",null,null,null,null,"шт.",4000,4000,"СтилТрейд",null,null,12,48000,{"$f":"N15","v":48000},0,"№2 от 10.01.2022",null,null,null,null,null,0]
[null,"Выполнение работ по монтажу изоляции",null,null,null,null,"шт.",1,1,"НССЗ",null,null,null,null,null,null,null,null,null,null,null,null,null,{"$f":"P16","v":0}]
[null,"Окраска "]
[null,"Penguard HB, Grey ",null,null,null,null,"л.",120,120,"Мультиколор",null,null,{"$f":"874.8","v":874.8},{"$f":"M18*I18","v":104976},{"$f":"N18","v":104976},{"$f":"N18-O18","v":0},"№МС0155 от 24.01.2022",null,null,null,null,null,{"$f":"N18-O18","v":0}]
[null,"Jotamastic 90 RAL 7046 comp A, 14.8л comp B, 4.4л",null,null,null,null,"л.",37.200000000000003,37.200000000000003,"Мультиколор",null,null,{"$f":"928.8","v":928.8},34551.360000000001,{"$f":"N19","v":34551.360000000001},0,"№МС0155 от 24.01.2022",null,null,null,null,null,{"$f":"P19","v":0}]
[null,"Jotun Thinner №7",null,null,null,null,"л.",10,0,"Мультиколор",null,null,{"$f":"7472.51*1.2/10","v":896.70120000000009},0,null,0,null,null,null,null,null,null,null,null,null,null,null,{"$f":"P20","v":0}]
[null,"Jotun Thinner №10",null,null,null,null,"л.",20,20,"Мультиколор",null,null,432,8640,8640,0,"№МС0155 от 24.01.2022",null,null,null,null,null,{"$f":"P21","v":0}]
[null,"Jotun Thinner №17",null,null,null,null,"л.",60,40,"Мультиколор",null,null,555,22200,22200,0,"№МС0155 от 24.01.2022",null,null,null,null,null,{"$f":"N22-O22","v":0}]
[null,"Hardtop НВ RAL 9010 (белый)",null,null,null,null,"л.",55.26,55.26,"Мультиколор",null,null,{"$f":"1814.4","v":1814.4},100263.74400000001,100263.74400000001,0,"№МС0155 от 24.01.2022",null,null,null,null,null,{"$f":"N23-O23","v":0}]
[null,"Hardtop НВ RAL 9011 (черный)",null,null,null,null,"л.",1,4,"Мультиколор",null,null,{"$f":"(60579.36+15984)*1.2/76.64","v":1198.8},4795.2,null,4795.2,null,null,null,null,null,null,{"$f":"N24-O24","v":4795.2}]
[null,"Hardtop НВ RAL 6021 (фисташковый)",null,null,null,null,"л.",38.4,38.4,"Мультиколор",null,null,{"$f":"1652.4","v":1652.4},63452.160000000003,63452.160000000003,0,"№МС0155 от 24.01.2022",null,null,null,null,null,{"$f":"N25-O25","v":0}]
[null,"Hardtop НВ RAL 6026 (темно-зеленый)",null,null,null,null,"л.",38.4,30.254999999999999,"Мультиколор",null,null,1800,54459,54459,0,"№МС0155 от 24.01.2022",null,null,null,null,null,{"$f":"P26","v":0}]
[null,"Safeguard Uni",null,null,null,null,"л.",18,18,"Мультиколор",null,null,1004.4,18079.2,null,18079.2,null,null,null,null,null,null,null,null,{"$f":"P27","v":18079.2}]
[null,"AF SeaForce 90 Black",null,null,null,null,"л.",20,40,"Мультиколор",null,null,3553.2,142128,null,142128,null,null,null,null,null,null,null,null,{"$f":"P28","v":142128}]
[null,"Окраска и защита"]
[null,"Корщетка-венчик 20/25 мм",null,null,null,null,"шт.",340,250,"Инфо-тулс",null,null,59,{"$f":"M30*I30","v":14750},{"$f":"N30","v":14750},0,"№185 от 21.12.21",null,null,null,null,null,{"$f":"P30","v":0}]
[null,"Растворитель 646",null,null,null,null,"л.",350,350,"ООО \"Эспада\"",null,null,91,31850,{"$f":"N31","v":31850},0,"№2122153100012000000000337/25 от 24.01.2022",null,null,null,null,null,{"$f":"P31","v":0}]
[null,"Воронка фильтрующая 190 мм",null,null,null,null,"шт.",135,135,"Технопродукт Автомотив",null,null,3.41,460.35,{"$f":"N32","v":460.35},0,"№3647 от 20.12.21",null,null,null,null,null,0]
[null,"Гофрокартон 2-х слойный",null,null,null,null,"пог.м",150,150,"Картон Плюс",null,null,{"$f":"4976.1/150","v":33.173999999999999},4976.1000000000004,null,4976.1000000000004,null,null,null,null,null,null,4976.1000000000004]
[null,"Перчатки нитриловые RoxelPro RoxOne, Чёрные, размер L",null,null,null,null,"уп.",10,10,"Колор-Эксперт",null,null,2084.11,20841.100000000002,{"$f":"N34","v":20841.100000000002},0,"№3647 от 20.12.21",null,null,null,null,null,0]
[null,"Емкость смесительная 1550 мл зм",null,null,null,null,"шт.",10,10,"Технопродукт Автомотив",null,null,26.4,264,{"$f":"N35","v":264},0,"№3647 от 20.12.21",null,null,null,null,null,0]
[null,"Кисть флейц. 1\" Стандарт",null,null,null,null,"шт.",0,0,"Максидом",null,null,{"$f":"70","v":70},0,null,0,null,null,null,null,null,null,0]
[null,"Кисть флейц. 2\" Стандарт",null,null,null,null,"шт.",12,12,"Максидом",null,null,{"$f":"1049.28/I37","v":87.44},1049.28,null,1049.28,null,null,null,null,null,null,1049.28]
[null,"Лак акриловый матовый 2К Мобихел 47056422 (1 л.)",null,null,null,null,"л.","8","8","Колор-Эксперт",null,null,1712.77,13702.16,{"$f":"N38","v":13702.16},0,"№3647 от 20.12.21",null,null,null,null,null,0]
[null,"Отвердитель 2К 8800 Мобихел (0,5л)",null,null,null,null,"шт.","8","8","Колор-Эксперт",null,null,554.46,4435.68,4435.68,0,"№3647 от 20.12.21",null,null,null,null,null,0]
[null,"Разбавитель 2К 2100 Мобихел (0,5л)",null,null,null,null,"шт.","2","2","Колор-Эксперт",null,null,454.81,909.62,909.62,0,"№3647 от 20.12.21",null,null,null,null,null,0]
[null,"Лента малярная 48 мм*40м RoxelPor коричневая",null,null,null,null,"шт.",140,140,"Технопродукт Автомотив/ГрэйнХаус",null,null,127.76,17886.400000000001,17886.400000000001,0,"№3647 от 20.12.21",null,null,null,null,null,0]
[null,"Лента маскирующая 471 6мм",null,null,null,null,"шт.",6,6,"Технопродукт Автомотив/ГрэйнХаус",null,null,555.30999999999995,3331.8599999999997,{"$f":"N42","v":3331.8599999999997},0,"№3647 от 20.12.21",null,null,null,null,null,0]
[null,"Лента стрейч 0,45*20 мкм 300м",null,null,null,null,"шт.",4,2,"Технопродукт Автомотив/ГрэйнХаус",null,null,{"$f":"1484.52/2","v":742.26},1484.52,null,1484.52,null,null,null,null,null,null,1484.52]
[null,"Патрон - фильтр А от органических паров 6051",null,null,null,null,"шт.",60,60,"Технопродукт Автомотив/ГрэйнХаус",null,null,481.23,28873.800000000003,{"$f":"N44","v":28873.800000000003},0,"№3647 от 20.12.21",null,null,null,null,null,0]
[null,"Держатель для предфильтра 5911",null,null,null,null,"шт.",6,0,"Технопродукт Автомотив/ГрэйнХаус",null,null,65,0,null,0,null,null,null,null,null,null,0]
[null,"Пред-фильтр от пыли",null,null,null,null,"шт.",60,60,"Технопродукт Автомотив/ГрэйнХаус",null,null,114.26,6855.6,null,6855.6,null,null,null,null,null,null,6855.6]
[null,"Перчатки резиновые КЩС Тип 1 L-U-03 (аналог SF-S-06) р. L",null,null,null,null,"шт.",50,50,"ТД Форт",null,null,81.7,4085,null,4085,null,null,null,null,null,null,4085]
[null,"Плёнка защитная для полных масок 6000",null,null,null,null,"шт.",15,0,"Технопродукт Автомотив",null,null,78.2,0,null,0,null,null,null,null,null,null,0]
[null,"Ролик 100мм",null,null,null,null,"шт.",40,40,"Максидом",null,null,{"$f":"1451.2/I49","v":36.28},1451.2,null,1451.2,null,null,null,null,null,null,1451.2]
[null,"Валик Велюр 100 мм",null,null,null,null,"шт.",4,0,"Максидом",null,null,{"$f":"97","v":97},0,null,0,null,null,null,null,null,null,0]
[null,"Скотч брайт mirlon Р320, (10,5 м.кв)",null,null,null,null,"шт.",60,60,"Технопродукт Автомотив",null,null,85.17,5110.2,{"$f":"N51","v":5110.2},0,"№3647 от 20.12.21",null,null,null,null,null,0]
[null,"Скотч упаковочный 50/100мм",null,null,null,null,"шт.",10,10,"ТД Форт",null,null,0,0,null,0,null,null,null,null,null,null,0]
[null,"Плёнка для покраски 4х150м 9мк",null,null,null,null,"рул",6,6,"Империя цвета",null,null,2554.25,15325.5,{"$f":"N53","v":15325.5},0,"№3647 от 20.12.21",null,null,null,null,null,0]
[null,"Пена монтажная putech проф. 850 мл",null,null,null,null,"шт.",6,0,"Стройопторг",null,null,{"$f":"1836.12/6","v":306.02},0,null,0,null,null,null,null,null,null,0]
[null,"Очиститель монтажной пены",null,null,null,null,"шт.",1,0,null,null,null,166.46,0,null,0,null,null,null,null,null,null,0]
[null,"круг шлифовальный ф150 Hanko(Р=240)",null,null,null,null,"шт.",500,500,"Технопродукт Автомотив/ГрэйнХаус",null,null,17.72,8860,{"$f":"N56","v":8860},0,"№83 от 18.01.2022",null,null,null,null,null,0]
[null,"круг шлифовальный ф125Hanko(Р=40)",null,null,null,null,"шт.",600,600,"Технопродукт Автомотив/ГрэйнХаус",null,null,20.38,12228,{"$f":"N57","v":12228},0,"№83 от 18.01.2022",null,null,null,null,null,0]
[null,"круг шлифовальный ф150 Hanko(Р=320)",null,null,null,null,"шт.",100,100,"Технопродукт Автомотив/ГрэйнХаус",null,null,16.43,1643,null,1643,null,null,null,null,null,null,1643]
[null,"подошва для УШМ",null,null,null,null,"шт.",12,12,null,null,null,212.4,2548.8000000000002,null,2548.8000000000002,null,null,null,null,null,null,2548.8000000000002]
[null,"Полумаска",null,null,null,null,"шт.",2,1,null,null,null,2551.42,2551.42,{"$f":"N60","v":2551.42},0,"№3647 от 20.12.21",null,null,null,null,null,0]
[null,"Комбинезон малярный JPC95g (2 шт. - М, 2 шт. -XXL)",null,null,null,null,"шт.",6,3,"Технопродукт Автомотив/ГрэйнХаус",null,null,803.16,2409.48,null,2409.48,null,null,null,null,null,null,2409.48]
[null,"Комбинезон малярный JPC95g ( М)",null,null,null,null,"шт.",5,5,"Технопродукт Автомотив/ГрэйнХаус",null,null,742.83,3714.15,{"$f":"N62","v":3714.15},0,"№3647 от 20.12.21",null,null,null,null,null,0]
[null,"Плёнка п/э техническая 100 мкм",null,null,null,null,"м пог",200,200,"ЗАО \"Пластекс\"",null,null,{"$f":"56.72","v":56.72},11344,null,11344,null,null,null,null,null,null,11344]
[null,"Плёнка п/э техническая защитная самоклеющаяся",null,null,null,null,"кпл",1,0,null,null,null,21,0,null,0,null,null,null,null,null,null,0]
[null,"Кордщетка чашечная М14 для УШМ витая сталь d=65",null,null,null,null,"шт.",30,30,"220-ВОЛЬТ",null,null,193.2,5796,{"$f":"10*193.2","v":1932},3864,"№2122153100012000000000337/14 от 18.01.22",null,null,null,null,null,3864]
[null,"Кордщетка чашечная М14 для УШМ витая сталь d=75",null,null,null,null,"шт.",30,30,"220-ВОЛЬТ",null,null,211.6,6348,{"$f":"9*211.6","v":1904.3999999999999},4443.6000000000004,"№2122153100012000000000337/14 от 18.01.22",null,null,null,null,null,4443.6000000000004]
[null,"Вентиляция"]
[null,"Колено ЭРА D125мм 90г пласт белый",null,"1000366729","ЭРА",null,"шт.",1,1,"Максидом",null,null,142,{"$f":"M68*I68","v":142},null,{"$f":"N68-O68","v":142},null,null,null,null,null,null,null,{"$f":"P68","v":142}]
[null,"Соединитель ЭРА D125мм пласт белый",null,"1000366731","ЭРА",null,"шт.",4,4,"Максидом",null,null,54,216,null,216,null,null,null,null,null,null,null,216]
[null,"Соединитель ЭРА 60х204мм пласт белый",null,"1000366758","ЭРА",null,"шт.",2,2,"Максидом",null,null,65,130,null,130,null,null,null,null,null,null,null,130]
[null,"Решетка вентиляционная 12,5РКМ D125 алюминиевая c фланцем",null,"1001003542",null,null,"шт.",1,1,"Максидом",null,null,301,301,null,301,null,null,null,null,null,null,null,301]
[null,"Колено разноугл ЭРА 60х204мм 45гр пласт белый",null,"1000366756","ЭРА",null,"шт.",1,1,"Максидом",null,null,205,205,null,205,null,null,null,null,null,null,null,205]
[null,"Фланец пластик D100",null,"1000775357","ЭРА",null,"шт.",8,8,"Максидом",null,null,68,544,null,544,null,null,null,null,null,null,null,544]
[null,"Колено угловое ЭРА 60х204/d125мм 90гр пласт белый с фланцем",null,"1000366763","ЭРА",null,"шт.",2,2,"Максидом",null,null,{"$f":"147/I74","v":73.5},147,null,147,null,null,null,null,null,null,null,147]
[null,"Держатель ЭРА 60х204мм пласт белый",null,"1000366753","ЭРА",null,"шт.",6,6,"Максидом",null,null,43,258,null,258,null,null,null,null,null,null,null,258]
[null,"Канал круглый ЭРА 100мм 1м",null,"1000366714","ЭРА",null,"шт.",2,2,"Максидом",null,null,193,386,null,386,null,null,null,null,null,null,null,386]
[null,"Канал круглый ЭРА 125мм 0,5м",null,"1000366727","ЭРА",null,"шт.",2,2,"Максидом",null,null,156,312,null,312,null,null,null,null,null,null,null,312]
[null,"Канал плоский ЭРА 60х204мм 1,5м",null,"1000366750","ЭРА",null,"шт.",2,2,"Максидом",null,null,459,918,null,918,null,null,null,null,null,null,null,918]
[null,"Символика"]
[null,"Шильды",null,null,null,null,"компл.",1,1,"ООО \"АЛЮМОФОТО\"",null,null,10000,10000,null,{"$f":"N80-O80","v":10000},null,null,null,null,null,null,null,null,{"$f":"P80","v":10000}]
[null,"Наклейки (название, порт приписки и т.д.)",null,null,null,null,"компл.",1,1,"Диатон",null,null,2220,2220,null,2220,null,null,null,null,null,null,null,null,2220]
[null,"трафарет марки осадок",null,null,null,null,"компл.",1,1,null,null,null,2220,2220,null,2220,null,null,null,null,null,null,null,null,2220]
[null,"Трафарет для кильблоков",null,null,null,null,"компл.",1,1,null,null,null,2220,2220,null,2220,null,null,null,null,null,null,null,null,2220]
[null,"Табличка строителя",null,null,null,null,"шт.",1,0,"Алюмофото",null,null,1500,0,null,0,null,null,null,null,null,null,null,null,0]
["Σ","ИТОГО",null,null,null,null,null,null,null,"Итого",null,null,null,{"$f":"SUM(N5:N84)","v":1239660.9839999997},{"$f":"SUM(O5:O84)","v":684672.9040000001},{"$f":"SUM(P5:P84)","v":554988.07999999996},null,null,null,null,null,null,{"$f":"SUM(W5:W84)","v":374561.87999999995},3559,176867.20000000001,0,0,0,0,0,0,0,0,0,0]
[null,"МАКСИМАЛЬНАЯ СУММА",null,null,null,null,null,null,null,null,null,null,null,960000]
[null,"Перерасход",null,null,null,null,null,null,null,null,null,null,null,{"$f":"N86-N85","v":-279660.98399999971}]
[]
["Подтверждено конструкторами"]
["Заказано"]
["Получено"]
["Задержка"]
[]
[null,"ХХХХХХХХХХ - Новая позиция"]
[null,"Тепловизор - Исключенная позиция "]

{"sheet":"S2","index":1,"n_rows":95,"n_cols":35,"rows_kept":95,"cut":false,"hidden":false,"merged":[[0,0,0,21],[1,0,1,21]]}
[]
["11.ЛКМ и вентиляция "]
["Статус","Наименование","Тип","Артикул, марка","Изготовитель","Назначение/ примечание","Ед. изм.","Кол-во на 1 зак. План","Кол-во к закупке","Наименование поставщика","Курс р./ [валюта]","Цена,                   [валюта]/ ед.","Цена,                     руб./ ед.","Стоимость, руб.","Оплачено","К оплате","№ и дата счета","Дата оплаты/ срок поставки","Плановая дата поставки","Требуемая дата на складе","Склад дата","Кто заказывает","январь","февраль","март","апрель","май","июнь","июль","август","сентябрь","октябрь","ноябрь","декабрь","Служебная колонка"]
["1","2","3","4","5","6","7",8,9,"10","11","12","13","14","15","16","17","18","19","20","21","22","23","24","25","26","27","28","29","30","31","32","33","34"]
[null,"Изоляция "]
[null,"ROCKWOOL® SeaRox MA 740 ALU 50x1000x5000",null,null,null,null,"уп.",12,12,"Талан",null,null,3390,{"$f":"M6*I6","v":40680},null,{"$f":"N6-O6","v":40680},null,null,null,null,null,null,{"$f":"P6","v":40680}]
[null,"ROCKWOOL® SeaRox SL 740 ALU 50x600x1000 - 8 шт.",null,null,null,null,"уп.",30,30,"Талан",null,null,2528.64,75859.199999999997,null,{"$f":"N7-O7","v":75859.199999999997},null,null,null,null,null,null,75859.199999999997]
[null,"ROCKWOOL® SeaRox SL 620 ALU 30x600x1000 - 8 шт.",null,null,null,null,"уп.",19,19,"Талан",null,null,2528.64,48044.159999999996,null,48044.159999999996,null,null,null,null,null,null,48044.159999999996]
[null,"Доставка изоляции RockWool",null,null,null,null,"шт.",1,1,"Талан",null,null,5000,5000,null,5000,null,null,null,null,null,null,5000]
[null,"Жидкая изоляция \"ТЕПЛОТОР СТАНДАРТ\"",null,null,null,null,"л.",340,340,"РиК",null,null,{"$f":"8380.1/20","v":419.005},142461.70000000001,null,142461.70000000001,null,null,null,null,null,null,142461.70000000001]
[null,"цилиндры наливные Rockwool RW 100  32х30 к/ф",null,null,null,null,"шт.",1,0,"Талан",null,null,138.82,0,null,0,null,null,null,null,null,null,0]
[null,"цилиндры наливные Rockwool RW 100 48х30 к/ф",null,null,null,null,"м",1,0,"Талан",null,null,187.82,0,null,0,null,null,null,null,null,null,0]
[null,"Скотч алюминиевый широкий - 75 мм.",null,null,null,null,"м",96,96,"Гелеон",null,null,288,27648,null,27648,null,null,null,null,null,null,27648]
[null,"Гвоздь изоляционный приварной 3*85 стальной омедненный BIMETAL",null,null,null,null,"л.",4000,4000,"СтилТрейд/НЕВАДА",null,null,14.8,59200,{"$f":"N14","v":59200},0,"№2 от 10.01.2022",null,null,null,null,null,0]
[null,"Шайба Стальная диаметром 38 мм",null,null,null,null,"шт.",4000,4000,"СтилТрейд",null,null,3.5,14000,{"$f":"N15","v":14000},0,"№2 от 10.01.2022",null,null,null,null,null,0]
[null,"Выполнение работ по монтажу изоляции",null,null,null,null,"шт.",1,1,"НССЗ",null,null,null,null,null,null,null,null,null,null,null,null,null,{"$f":"P16","v":0}]
[null,"Окраска "]
[null,"Penguard HB, Grey ",null,null,null,null,"л.",120,120,"Мультиколор",null,null,{"$f":"874.8","v":874.8},{"$f":"M18*I18","v":104976},{"$f":"N18","v":104976},{"$f":"N18-O18","v":0},"№МС0155 от 24.01.2022",null,null,null,null,null,{"$f":"N18-O18","v":0}]
[null,"Jotamastic 90 RAL 7046 comp A, 14.8л comp B, 4.4л",null,null,null,null,"л.",37.200000000000003,37.200000000000003,"Мультиколор",null,null,{"$f":"928.8","v":928.8},34551.360000000001,{"$f":"N19","v":34551.360000000001},0,"№МС0155 от 24.01.2022",null,null,null,null,null,{"$f":"P19","v":0}]
[null,"Jotun Thinner №7",null,null,null,null,"л.",10,0,"Мультиколор",null,null,{"$f":"7472.51*1.2/10","v":896.70120000000009},0,null,0,null,null,null,null,null,null,null,null,null,null,null,{"$f":"P20","v":0}]
[null,"Jotun Thinner №10",null,null,null,null,"л.",20,20,"Мультиколор",null,null,432,8640,8640,0,"№МС0155 от 24.01.2022",null,null,null,null,null,{"$f":"P21","v":0}]
[null,"Jotun Thinner №17",null,null,null,null,"л.",60,40,"Мультиколор",null,null,432,17280,17280,0,"№МС0155 от 24.01.2022",null,null,null,null,null,{"$f":"N22-O22","v":0}]
[null,"Hardtop НВ RAL 9010 (белый)",null,null,null,null,"л.",55.26,55.26,"Мультиколор",null,null,{"$f":"1814.4","v":1814.4},100263.74400000001,100263.74400000001,0,"№МС0155 от 24.01.2022",null,null,null,null,null,{"$f":"N23-O23","v":0}]
[null,"Hardtop НВ RAL 9011 (черный)",null,null,null,null,"л.",1,4,"Мультиколор",null,null,{"$f":"(60579.36+15984)*1.2/76.64","v":1198.8},4795.2,null,4795.2,null,null,null,null,null,null,{"$f":"N24-O24","v":4795.2}]
[null,"Hardtop НВ RAL 6021 (фисташковый)",null,null,null,null,"л.",38.4,38.4,"Мультиколор",null,null,{"$f":"1652.4","v":1652.4},63452.160000000003,63452.160000000003,0,"№МС0155 от 24.01.2022",null,null,null,null,null,{"$f":"N25-O25","v":0}]
[null,"Hardtop НВ RAL 6026 (темно-зеленый)",null,null,null,null,"л.",38.4,30.254999999999999,"Мультиколор",null,null,{"$f":"(65051.91+16092)*1.2/60.51","v":1609.2},48686.345999999998,48686.345999999998,0,"№МС0155 от 24.01.2022",null,null,null,null,null,{"$f":"P26","v":0}]
[null,"Safeguard Uni",null,null,null,null,"л.",18,18,"Мультиколор",null,null,1004.4,18079.2,null,18079.2,null,null,null,null,null,null,null,null,{"$f":"P27","v":18079.2}]
[null,"AF SeaForce 90 Black",null,null,null,null,"л.",20,40,"Мультиколор",null,null,3553.2,142128,null,142128,null,null,null,null,null,null,null,null,{"$f":"P28","v":142128}]
[null,"Окраска и защита"]
[null,"Корщетка-венчик 20/25 мм",null,null,null,null,"шт.",340,250,"Инфо-тулс",null,null,59,{"$f":"M30*I30","v":14750},{"$f":"N30","v":14750},0,"№185 от 21.12.21",null,null,null,null,null,{"$f":"P30","v":0}]
[null,"Растворитель 646",null,null,null,null,"л.",350,350,"ООО \"Эспада\"",null,null,91,31850,{"$f":"N31","v":31850},0,"№2122153100012000000000337/25 от 24.01.2022",null,null,null,null,null,{"$f":"P31","v":0}]
[null,"Воронка фильтрующая 190 мм",null,null,null,null,"шт.",135,135,"Технопродукт Автомотив",null,null,3.41,460.35,{"$f":"N32","v":460.35},0,"№3647 от 20.12.21",null,null,null,null,null,0]
[null,"Гофрокартон 2-х слойный",null,null,null,null,"пог.м",150,150,"Картон Плюс",null,null,{"$f":"4976.1/150","v":33.173999999999999},4976.1000000000004,null,4976.1000000000004,null,null,null,null,null,null,4976.1000000000004]
[null,"Перчатки нитриловые RoxelPro RoxOne, Чёрные, размер L",null,null,null,null,"уп.",10,10,"Колор-Эксперт",null,null,2084.11,20841.100000000002,{"$f":"N34","v":20841.100000000002},0,"№3647 от 20.12.21",null,null,null,null,null,0]
[null,"Емкость смесительная 1550 мл зм",null,null,null,null,"шт.",10,10,"Технопродукт Автомотив",null,null,26.4,264,{"$f":"N35","v":264},0,"№3647 от 20.12.21",null,null,null,null,null,0]
[null,"Кисть флейц. 1\" Стандарт",null,null,null,null,"шт.",0,0,"Максидом",null,null,{"$f":"70","v":70},0,null,0,null,null,null,null,null,null,0]
[null,"Кисть флейц. 2\" Стандарт",null,null,null,null,"шт.",12,12,"Максидом",null,null,{"$f":"1049.28/I37","v":87.44},1049.28,null,1049.28,null,null,null,null,null,null,1049.28]
[null,"Лак акриловый матовый 2К Мобихел 47056422 (1 л.)",null,null,null,null,"л.","8","8","Колор-Эксперт",null,null,1712.77,13702.16,{"$f":"N38","v":13702.16},0,"№3647 от 20.12.21",null,null,null,null,null,0]
[null,"Отвердитель 2К 8800 Мобихел (0,5л)",null,null,null,null,"шт.","8","8","Колор-Эксперт",null,null,554.46,4435.68,4435.68,0,"№3647 от 20.12.21",null,null,null,null,null,0]
[null,"Разбавитель 2К 2100 Мобихел (0,5л)",null,null,null,null,"шт.","2","2","Колор-Эксперт",null,null,454.81,909.62,909.62,0,"№3647 от 20.12.21",null,null,null,null,null,0]
[null,"Лента малярная 48 мм*40м RoxelPor коричневая",null,null,null,null,"шт.",140,140,"Технопродукт Автомотив/ГрэйнХаус",null,null,127.76,17886.400000000001,17886.400000000001,0,"№3647 от 20.12.21",null,null,null,null,null,0]
[null,"Лента маскирующая 471 6мм",null,null,null,null,"шт.",6,6,"Технопродукт Автомотив/ГрэйнХаус",null,null,555.30999999999995,3331.8599999999997,{"$f":"N42","v":3331.8599999999997},0,"№3647 от 20.12.21",null,null,null,null,null,0]
[null,"Лента стрейч 0,45*20 мкм 300м",null,null,null,null,"шт.",4,2,"Технопродукт Автомотив/ГрэйнХаус",null,null,{"$f":"1484.52/2","v":742.26},1484.52,null,1484.52,null,null,null,null,null,null,1484.52]
[null,"Патрон - фильтр А от органических паров 6051",null,null,null,null,"шт.",60,60,"Технопродукт Автомотив/ГрэйнХаус",null,null,481.23,28873.800000000003,{"$f":"N44","v":28873.800000000003},0,"№3647 от 20.12.21",null,null,null,null,null,0]
[null,"Держатель для предфильтра 5911",null,null,null,null,"шт.",6,0,"Технопродукт Автомотив/ГрэйнХаус",null,null,65,0,null,0,null,null,null,null,null,null,0]
[null,"Пред-фильтр от пыли",null,null,null,null,"шт.",60,60,"Технопродукт Автомотив/ГрэйнХаус",null,null,114.26,6855.6,null,6855.6,null,null,null,null,null,null,6855.6]
[null,"Перчатки резиновые КЩС Тип 1 L-U-03 (аналог SF-S-06) р. L",null,null,null,null,"шт.",50,50,"ТД Форт",null,null,81.7,4085,null,4085,null,null,null,null,null,null,4085]
[null,"Плёнка защитная для полных масок 6000",null,null,null,null,"шт.",15,0,"Технопродукт Автомотив",null,null,78.2,0,null,0,null,null,null,null,null,null,0]
[null,"Ролик 100мм",null,null,null,null,"шт.",40,40,"Максидом",null,null,{"$f":"1451.2/I49","v":36.28},1451.2,null,1451.2,null,null,null,null,null,null,1451.2]
[null,"Валик Велюр 100 мм",null,null,null,null,"шт.",4,0,"Максидом",null,null,{"$f":"97","v":97},0,null,0,null,null,null,null,null,null,0]
[null,"Скотч брайт mirlon Р320, (10,5 м.кв)",null,null,null,null,"шт.",60,60,"Технопродукт Автомотив",null,null,85.17,5110.2,{"$f":"N51","v":5110.2},0,"№3647 от 20.12.21",null,null,null,null,null,0]
[null,"Скотч упаковочный 50/100мм",null,null,null,null,"шт.",10,10,"ТД Форт",null,null,0,0,null,0,null,null,null,null,null,null,0]
[null,"Плёнка для покраски 4х150м 9мк",null,null,null,null,"рул",6,6,"Империя цвета",null,null,2554.25,15325.5,{"$f":"N53","v":15325.5},0,"№3647 от 20.12.21",null,null,null,null,null,0]
[null,"Пена монтажная putech проф. 850 мл",null,null,null,null,"шт.",6,0,"Стройопторг",null,null,{"$f":"1836.12/6","v":306.02},0,null,0,null,null,null,null,null,null,0]
[null,"Очиститель монтажной пены",null,null,null,null,"шт.",1,0,null,null,null,166.46,0,null,0,null,null,null,null,null,null,0]
[null,"круг шлифовальный ф150 Hanko(Р=240)",null,null,null,null,"шт.",500,500,"Технопродукт Автомотив/ГрэйнХаус",null,null,17.72,8860,{"$f":"N56","v":8860},0,"№83 от 18.01.2022",null,null,null,null,null,0]
[null,"круг шлифовальный ф125Hanko(Р=40)",null,null,null,null,"шт.",600,600,"Технопродукт Автомотив/ГрэйнХаус",null,null,20.38,12228,{"$f":"N57","v":12228},0,"№83 от 18.01.2022",null,null,null,null,null,0]
[null,"круг шлифовальный ф150 Hanko(Р=320)",null,null,null,null,"шт.",100,100,"Технопродукт Автомотив/ГрэйнХаус",null,null,16.43,1643,null,1643,null,null,null,null,null,null,1643]
[null,"подошва для УШМ",null,null,null,null,"шт.",12,12,null,null,null,212.4,2548.8000000000002,null,2548.8000000000002,null,null,null,null,null,null,2548.8000000000002]
[null,"Полумаска",null,null,null,null,"шт.",2,1,null,null,null,2551.42,2551.42,{"$f":"N60","v":2551.42},0,"№3647 от 20.12.21",null,null,null,null,null,0]
[null,"Комбинезон малярный JPC95g (2 шт. - М, 2 шт. -XXL)",null,null,null,null,"шт.",6,3,"Технопродукт Автомотив/ГрэйнХаус",null,null,803.16,2409.48,null,2409.48,null,null,null,null,null,null,2409.48]
[null,"Комбинезон малярный JPC95g ( М)",null,null,null,null,"шт.",5,5,"Технопродукт Автомотив/ГрэйнХаус",null,null,742.83,3714.15,{"$f":"N62","v":3714.15},0,"№3647 от 20.12.21",null,null,null,null,null,0]
[null,"Плёнка п/э техническая 100 мкм",null,null,null,null,"м пог",200,200,"ЗАО \"Пластекс\"",null,null,{"$f":"56.72","v":56.72},11344,null,11344,null,null,null,null,null,null,11344]
[null,"Плёнка п/э техническая защитная самоклеющаяся",null,null,null,null,"кпл",1,0,null,null,null,21,0,null,0,null,null,null,null,null,null,0]
[null,"Кордщетка чашечная М14 для УШМ витая сталь d=65",null,null,null,null,"шт.",30,30,"220-ВОЛЬТ",null,null,193.2,5796,{"$f":"10*193.2","v":1932},3864,"№2122153100012000000000337/14 от 18.01.22",null,null,null,null,null,3864]
[null,"Кордщетка чашечная М14 для УШМ витая сталь d=75",null,null,null,null,"шт.",30,30,"220-ВОЛЬТ",null,null,211.6,6348,{"$f":"9*211.6","v":1904.3999999999999},4443.6000000000004,"№2122153100012000000000337/14 от 18.01.22",null,null,null,null,null,4443.6000000000004]
[null,"Вентиляция"]
[null,"Колено ЭРА D125мм 90г пласт белый",null,"1000366729","ЭРА",null,"шт.",1,1,"Максидом",null,null,142,{"$f":"M68*I68","v":142},null,{"$f":"N68-O68","v":142},null,null,null,null,null,null,null,{"$f":"P68","v":142}]
[null,"Соединитель ЭРА D125мм пласт белый",null,"1000366731","ЭРА",null,"шт.",4,4,"Максидом",null,null,54,216,null,216,null,null,null,null,null,null,null,216]
[null,"Соединитель ЭРА 60х204мм пласт белый",null,"1000366758","ЭРА",null,"шт.",2,2,"Максидом",null,null,65,130,null,130,null,null,null,null,null,null,null,130]
[null,"Решетка вентиляционная 12,5РКМ D125 алюминиевая c фланцем",null,"1001003542",null,null,"шт.",1,1,"Максидом",null,null,301,301,null,301,null,null,null,null,null,null,null,301]
[null,"Колено разноугл ЭРА 60х204мм 45гр пласт белый",null,"1000366756","ЭРА",null,"шт.",1,1,"Максидом",null,null,205,205,null,205,null,null,null,null,null,null,null,205]
[null,"Фланец пластик D100",null,"1000775357","ЭРА",null,"шт.",8,8,"Максидом",null,null,68,544,null,544,null,null,null,null,null,null,null,544]
[null,"Колено угловое ЭРА 60х204/d125мм 90гр пласт белый с фланцем",null,"1000366763","ЭРА",null,"шт.",2,2,"Максидом",null,null,{"$f":"147/I74","v":73.5},147,null,147,null,null,null,null,null,null,null,147]
[null,"Держатель ЭРА 60х204мм пласт белый",null,"1000366753","ЭРА",null,"шт.",6,6,"Максидом",null,null,43,258,null,258,null,null,null,null,null,null,null,258]
[null,"Канал круглый ЭРА 100мм 1м",null,"1000366714","ЭРА",null,"шт.",2,2,"Максидом",null,null,193,386,null,386,null,null,null,null,null,null,null,386]
[null,"Канал круглый ЭРА 125мм 0,5м",null,"1000366727","ЭРА",null,"шт.",2,2,"Максидом",null,null,156,312,null,312,null,null,null,null,null,null,null,312]
[null,"Канал плоский ЭРА 60х204мм 1,5м",null,"1000366750","ЭРА",null,"шт.",2,2,"Максидом",null,null,459,918,null,918,null,null,null,null,null,null,null,918]
[null,"Символика"]
[null,"Шильды",null,null,null,null,"компл.",1,1,"ООО \"АЛЮМОФОТО\"",null,null,10000,10000,null,{"$f":"N80-O80","v":10000},null,null,null,null,null,null,null,null,{"$f":"P80","v":10000}]
[null,"Наклейки (название, порт приписки и т.д.)",null,null,null,null,"компл.",1,1,"Диатон",null,null,2220,2220,null,2220,null,null,null,null,null,null,null,null,2220]
[null,"трафарет марки осадок",null,null,null,null,"компл.",1,1,null,null,null,2220,2220,null,2220,null,null,null,null,null,null,null,null,2220]
[null,"Трафарет для кильблоков",null,null,null,null,"компл.",1,1,null,null,null,2220,2220,null,2220,null,null,null,null,null,null,null,null,2220]
[null,"Табличка строителя",null,null,null,null,"шт.",1,0,"Алюмофото",null,null,1500,0,null,0,null,null,null,null,null,null,null,null,0]
["Σ","ИТОГО",null,null,null,null,null,null,null,"Итого",null,null,null,{"$f":"SUM(N5:N84)","v":1211049.29},{"$f":"SUM(O5:O84)","v":639980.25000000012},{"$f":"SUM(P5:P84)","v":571069.04},null,null,null,null,null,null,{"$f":"SUM(W5:W84)","v":390642.83999999997},3559,176867.20000000001,0,0,0,0,0,0,0,0,0,0]
[null,"МАКСИМАЛЬНАЯ СУММА",null,null,null,null,null,null,null,null,null,null,null,960000]
[null,"Перерасход",null,null,null,null,null,null,null,null,null,null,null,{"$f":"N86-N85","v":-251049.29000000004}]
[]
["Подтверждено конструкторами"]
["Заказано"]
["Получено"]
["Задержка"]
[]
[null,"ХХХХХХХХХХ - Новая позиция"]
[null,"Тепловизор - Исключенная позиция "]

{"sheet":"S3","index":2,"n_rows":0,"n_cols":0,"rows_kept":0,"cut":false,"hidden":true,"merged":[]}